bitfinex/quotes_ETHUSD_20220227
["timestamp","ask_amount","ask_price","bid_price","bid_amount"]
[1645932649602,0.023056,2726.4,2725.7,3.14774761]
[1645932649797,0.023056,2726.4,2725.7,2.92104761]
[1645932649798,1.54995127,2726.3,2725.7,2.92104761]
[1645932650004,1.54995127,2726.3,2726.2,0.08]
[1645932650202,9.581187,2727.5,2726.2,16.87]
[1645932650203,0.69797374,2727.2,2726.2,16.87]
[1645932650401,1.54975054,2727.1,2726.3,11.776]
[1645932650604,1.54975054,2727.0,2726.5,11.26]
[1645932650804,1.54975054,2726.9,2726.8,0.08]
[1645932651002,1.54975054,2726.9,2726.6,0.53]
[1645932651003,0.18270193,2726.7,2726.6,0.53]
[1645932651203,0.18270193,2726.7,2726.5,1.1466]
[1645932651402,0.18270193,2726.7,2726.5,0.1466]
[1645932651604,0.18270193,2726.7,2726.6,0.53]
[1645932651802,0.18270193,2726.7,2726.6,0.61]
[1645932654244,0.18270193,2726.7,2726.6,0.08]
[1645932654646,0.18270193,2726.7,2726.2,4.7355]
[1645932654857,0.18270193,2726.7,2726.2,1.53]
[1645932655048,0.18270193,2726.7,2726.3,0.08]
[1645932655247,0.00577759,2726.6,2726.3,0.08]
[1645932655446,0.00577759,2726.6,2726.4,1.12074462]
[1645932655948,0.00577759,2726.6,2726.5,0.08]
[1645932656203,0.18270193,2726.7,2725.9,4.917]
[1645932656204,0.55210193,2726.7,2725.9,3.917]
[1645932656398,3.8694,2726.6,2725.7,23.25967365]
[1645932656595,3.8694,2726.5,2725.7,20.92547365]
[1645932656794,0.3,2726.5,2725.7,20.92547365]
[1645932656995,0.3,2726.5,2726.2,0.08]
[1645932657199,0.15247756,2726.6,2726.2,0.08]
[1645932657401,2.63002991,2726.7,2726.2,0.08]
[1645932657600,0.00577763,2726.5,2726.2,0.08]
[1645932658597,1.0,2726.6,2726.2,0.08]
[1645932658999,0.00577763,2726.5,2726.2,0.08]
[1645932659943,1.0,2726.6,2726.2,0.08]
[1645932660138,0.00577763,2726.5,2726.2,0.08]
[1645932660341,0.00577763,2726.5,2725.7,21.92547365]
[1645932660552,0.00577763,2726.5,2726.3,0.08]
[1645932660942,1.0,2726.6,2726.3,0.08]
[1645932661346,1.00577763,2726.5,2726.3,0.08]
[1645932661742,1.30577763,2726.5,2726.3,0.08]
[1645932662146,1.3,2726.5,2726.3,0.08]
[1645932662743,1.29914709,2726.5,2726.3,0.08]
[1645932663694,1.0,2726.5,2726.3,0.08]
[1645932663893,0.18270193,2726.7,2726.4,0.53]
[1645932664093,0.18270193,2726.7,2726.4,11.79]
[1645932664491,0.18270193,2726.7,2726.4,2.4796]
[1645932664894,0.18668533,2726.7,2726.4,0.53]
[1645932665096,0.18668533,2726.7,2726.6,0.08]
[1645932665696,0.18270193,2726.7,2726.6,0.08]
[1645932668157,0.18270193,2726.7,2725.9,4.9434]
[1645932668158,0.18270193,2726.7,2725.9,3.0738]
[1645932668354,0.18270193,2726.7,2725.7,20.92547365]
[1645932668355,0.3694,2726.6,2725.7,20.92547365]
[1645932668655,0.6694,2726.6,2725.7,20.92547365]
[1645932668853,1.7438,2726.6,2725.7,20.92547365]
[1645932669054,1.7438,2726.6,2726.0,0.08]
[1645932669254,0.1792,2726.3,2726.0,0.08]
[1645932669857,0.1792,2726.3,2725.7,20.92547365]
[1645932669858,0.1467,2726.3,2725.7,20.92547365]
[1645932670058,0.362,2726.1,2725.7,20.67547365]
[1645932670276,0.7803,2726.1,2725.7,20.67547365]
[1645932670457,0.3,2726.0,2725.7,20.67547365]
[1645932671098,0.1792,2725.9,2725.7,20.67547365]
[1645932671904,0.1467,2725.9,2725.7,20.67547365]
[1645932672105,0.1792,2725.8,2725.7,20.67547365]
[1645932672504,0.1792,2725.8,2725.7,19.02181956]
[1645932672911,0.1792,2725.8,2725.7,18.56251956]
[1645932673505,0.1792,2725.8,2725.7,15.28850822]
[1645932673705,0.5486,2725.8,2725.0,0.33]
[1645932673908,0.5486,2725.8,2724.8,18.82651846]
[1645932674108,0.1467,2725.7,2724.8,18.82651846]
[1645932674308,0.1467,2725.7,2725.0,1.0]
[1645932674707,1.36049156,2725.3,2725.0,1.0]
[1645932674954,0.9584,2725.4,2725.0,1.0]
[1645932675158,0.1792,2725.3,2724.8,18.82651846]
[1645932675957,0.1792,2725.3,2725.1,1.12464524]
[1645932676155,1.55126573,2725.8,2725.2,0.54]
[1645932676156,0.1792,2725.6,2725.2,0.54]
[1645932676358,0.1792,2725.6,2725.1,1.12464524]
[1645932676857,2.9309,2726.1,2725.5,0.54]
[1645932677056,0.5486,2726.1,2725.5,0.54]
[1645932677258,0.3694,2726.1,2725.5,0.54]
[1645932677459,0.1792,2725.9,2725.5,0.54]
[1645932678260,0.1792,2725.8,2725.2,0.54]
[1645932678699,0.1792,2725.7,2725.2,0.54]
[1645932678903,0.1467,2726.1,2725.2,0.0807]
[1645932679100,0.1792,2725.6,2725.2,0.0807]
[1645932679499,0.1792,2725.6,2724.9,18.55721846]
[1645932679899,0.6694,2725.9,2724.9,18.55721846]
[1645932679900,0.1792,2725.4,2724.9,18.55721846]
[1645932680100,0.1792,2725.4,2724.9,19.55721846]
[1645932681601,0.1792,2725.4,2725.0,1.38254728]
[1645932682000,0.1792,2725.4,2725.0,0.92324728]
[1645932683346,0.1792,2725.4,2724.9,18.55721846]
[1645932683548,0.3,2725.9,2725.2,1.0]
[1645932683549,0.1792,2725.7,2725.2,1.0]
[1645932685145,0.3,2725.9,2724.8,0.25]
[1645932685346,0.3,2725.9,2724.9,1.0]
[1645932685347,0.3694,2725.7,2724.9,1.0]
[1645932685547,0.1792,2725.5,2724.9,1.0]
[1645932685751,1.0891927,2725.3,2724.9,1.0]
[1645932686200,0.1792,2725.5,2724.9,1.0]
[1645932687105,1.22252517,2725.4,2724.9,1.0]
[1645932687504,0.3,2725.4,2724.9,1.0]
[1645932687703,0.1792,2725.5,2724.9,1.0]
[1645932689104,0.6694,2725.6,2724.7,0.25]
[1645932689304,0.4792,2725.6,2725.2,1.0]
[1645932689707,0.4792,2725.6,2724.9,1.0]
[1645932691750,1.56494898,2725.6,2724.9,1.0]
[1645932693895,0.1792,2725.6,2724.7,0.25]
[1645932694097,0.1792,2725.6,2725.2,1.0]
[1645932694900,0.1792,2725.6,2724.7,0.25]
[1645932695101,1.23339652,2725.5,2724.9,1.0]
[1645932695402,0.1792,2725.6,2724.9,1.0]
[1645932695802,0.1792,2725.6,2725.0,3.5]
[1645932696013,3.64879268,2726.7,2725.1,0.3694]
[1645932696014,2.04829901,2726.7,2725.1,0.3694]
[1645932696305,2.04829901,2726.7,2725.6,0.3694]
[1645932696306,0.1792,2726.0,2725.6,0.3694]
[1645932696502,0.1792,2726.0,2725.9,1.01413631]
[1645932696706,0.1792,2726.0,2725.9,0.53]
[1645932697103,2.5161,2726.6,2725.6,1.0]
[1645932697342,0.5486,2726.4,2725.3,0.53]
[1645932697543,1.55010965,2726.3,2725.3,0.53]
[1645932698348,1.55010965,2726.3,2725.6,1.22454174]
[1645932698552,1.55010965,2726.3,2725.8,1.0]
[1645932698553,0.20232714,2726.3,2725.8,1.0]
[1645932699443,0.1792,2726.3,2725.8,1.0]
[1645932700047,1.54999892,2726.2,2725.8,1.0]
[1645932700449,1.84999892,2726.2,2725.5,0.53]
[1645932700649,1.54999892,2726.1,2725.3,1.0]
[1645932700850,1.84999892,2726.1,2725.3,1.0]
[1645932701118,1.54999892,2726.0,2725.3,1.0]
[1645932701504,2.95922528,2726.0,2725.3,2.38915698]
[1645932701706,0.1792,2726.2,2725.7,1.0]
[1645932701906,1.55013888,2726.1,2725.8,1.0]
[1645932702305,1.85013888,2726.1,2725.8,1.0]
[1645932702505,1.55013888,2726.0,2725.8,1.0]
[1645932702705,1.55013888,2725.9,2725.8,1.0]
[1645932703108,1.55013888,2726.0,2725.8,1.0]
[1645932703305,0.3,2726.1,2725.8,1.0]
[1645932703506,1.55009727,2726.0,2725.8,1.0]
[1645932704964,0.3,2726.1,2725.8,1.0]
[1645932705265,0.1792,2726.2,2725.8,1.0]
[1645932705466,1.55005054,2726.1,2725.8,1.0]
[1645932705765,1.85005054,2726.1,2725.8,1.0]
[1645932705965,0.3,2726.1,2725.8,1.0]
[1645932706269,0.1792,2726.2,2725.8,1.0]
[1645932706468,1.54856611,2726.1,2725.8,1.0]
[1645932706668,1.91796611,2726.1,2725.1,3.1746]
[1645932706868,1.65357502,2725.6,2725.1,3.1746]
[1645932707067,1.65357502,2725.6,2725.0,1.0]
[1645932707667,1.65357502,2725.6,2725.1,1.0]
[1645932707867,2.92414319,2725.6,2725.1,1.0]
[1645932709107,1.65357502,2725.6,2725.1,1.0]
[1645932710411,1.65357502,2725.6,2725.3,1.10388761]
[1645932710814,1.65357502,2725.6,2725.4,1.0]
[1645932713357,1.95357502,2725.6,2725.4,1.0]
[1645932715459,1.65357502,2725.6,2725.4,1.0]
[1645932720653,1.65357502,2725.6,2725.4,1.53]
[1645932720854,1.65357502,2725.6,2725.4,0.53]
[1645932721254,1.65357502,2725.6,2725.4,4.03]
[1645932721558,1.65357502,2725.6,2725.5,1.0]
[1645932721756,1.65357502,2725.6,2725.5,1.53]
[1645932726820,1.65357502,2725.6,2725.5,0.53]
[1645932727020,1.65357502,2725.6,2725.2,1.28493444]
[1645932727223,1.65357502,2725.6,2724.8,0.90910866]
[1645932727653,1.55023134,2725.5,2724.8,0.90910866]
[1645932727850,1.55023134,2725.5,2724.8,0.00096]
[1645932728250,1.55023134,2725.5,2725.1,1.0]
[1645932728856,1.55023134,2725.5,2724.8,0.00096]
[1645932728857,0.3694,2725.4,2724.8,0.00096]
[1645932729056,1.55023134,2725.3,2724.8,0.00096]
[1645932729261,1.85023134,2725.3,2724.6,0.1996]
[1645932729453,1.2766969,2724.9,2724.6,0.1996]
[1645932729654,2.3828969,2724.9,2724.6,0.1996]
[1645932730456,1.55061161,2724.8,2724.5,0.00180482]
[1645932730654,1.55061161,2724.8,2724.6,0.1992]
[1645932730954,2.3828969,2724.9,2724.6,0.1992]
[1645932730955,1.5766969,2724.9,2724.6,0.1992]
[1645932731203,1.55061829,2724.8,2724.6,0.1992]
[1645932731806,1.85061829,2724.8,2724.6,0.1992]
[1645932732005,1.2766969,2724.9,2724.6,0.1992]
[1645932732206,1.55065276,2724.8,2724.6,0.1992]
[1645932732405,0.1468,2725.3,2724.6,0.1992]
[1645932732606,0.1792,2724.9,2724.6,0.1992]
[1645932732803,4.95737499,2725.6,2724.8,1.0]
[1645932733005,0.1792,2725.4,2724.8,1.0]
[1645932733203,1.55049296,2725.3,2724.8,1.0]
[1645932733404,1.55049296,2725.2,2724.8,1.0]
[1645932733604,1.55049296,2725.5,2724.7,0.00096]
[1645932733803,1.55045281,2725.4,2725.0,1.0]
[1645932734006,1.55045281,2725.3,2725.0,1.0]
[1645932734204,1.55045281,2725.2,2725.0,1.0]
[1645932734412,3.97097499,2725.6,2725.0,1.0]
[1645932734706,1.55044921,2725.5,2724.8,0.00096]
[1645932734953,1.72964921,2725.5,2724.8,0.00096]
[1645932735154,1.55044921,2725.4,2724.8,0.00096]
[1645932735557,1.85044921,2725.4,2724.6,1.39676579]
[1645932735754,1.55044921,2725.3,2724.6,1.39676579]
[1645932735954,1.55044921,2725.3,2724.8,0.9504]
[1645932736556,1.55044921,2725.3,2724.6,1.39676579]
[1645932736755,1.55044921,2725.3,2724.9,0.9504]
[1645932737556,1.55044921,2725.3,2724.9,0.94883425]
[1645932739201,0.1792,2725.2,2724.9,0.94883425]
[1645932739503,1.55044921,2725.1,2724.7,0.00096]
[1645932739698,0.1792,2725.0,2724.7,0.00096]
[1645932739899,1.61662795,2725.0,2724.6,0.1992]
[1645932740102,1.55044921,2724.9,2724.6,0.1992]
[1645932740298,1.85044921,2724.9,2724.6,0.1992]
[1645932740598,0.3,2724.9,2724.6,0.1992]
[1645932740899,1.91662795,2725.0,2724.6,1.148]
[1645932741103,1.55061369,2724.9,2724.6,1.148]
[1645932741605,1.91662795,2725.0,2724.6,1.148]
[1645932741804,1.55064328,2724.9,2724.6,1.148]
[1645932742207,1.72984328,2724.9,2724.6,1.148]
[1645932742452,1.73742795,2725.0,2724.6,0.1992]
[1645932742453,1.72984328,2724.8,2724.6,0.1992]
[1645932742652,0.4792,2724.8,2724.6,0.1992]
[1645932742855,0.1792,2724.7,2724.6,0.1992]
[1645932743252,0.1792,2724.7,2724.5,0.00182062]
[1645932743454,0.1792,2724.6,2724.5,0.00182062]
[1645932743652,1.55082885,2724.6,2724.5,0.00182062]
[1645932743850,1.55082885,2724.6,2724.4,0.04974957]
[1645932743851,0.1792,2724.5,2724.4,0.04974957]
[1645932744351,0.1792,2724.5,2724.4,0.05556351]
[1645932744558,1.73008767,2724.5,2724.4,0.05556351]
[1645932744754,0.1792,2724.5,2724.4,0.05556351]
[1645932744958,1.73006457,2724.5,2724.4,0.05556351]
[1645932745158,2.03006457,2724.5,2724.1,18.15130197]
[1645932745356,0.4792,2724.5,2724.1,18.15130197]
[1645932745557,0.4792,2724.5,2724.3,0.00581401]
[1645932745758,0.1792,2724.5,2724.3,0.00581401]
[1645932746399,0.1792,2724.5,2724.1,18.15130197]
[1645932747203,0.1792,2724.5,2724.1,19.10010197]
[1645932747799,0.1792,2724.5,2724.2,0.00581411]
[1645932748001,0.1792,2724.5,2724.1,19.06471284]
[1645932748203,2.0,2725.0,2724.2,0.9488]
[1645932748400,2.0,2725.0,2724.4,0.9488]
[1645932748401,1.55073105,2724.9,2724.4,0.9488]
[1645932749402,1.85073105,2724.9,2724.3,0.00096]
[1645932749598,0.3,2724.9,2724.5,0.9488]
[1645932749856,3.88698677,2725.0,2724.5,0.9488]
[1645932750060,1.40070633,2724.9,2724.5,0.9488]
[1645932750459,2.4792,2725.0,2724.5,0.9488]
[1645932750661,0.4792,2725.0,2724.5,0.9488]
[1645932750862,0.1792,2725.0,2724.5,0.9488]
[1645932751061,0.1792,2725.0,2724.5,0.4896]
[1645932751659,1.38059262,2725.0,2724.5,0.4896]
[1645932752560,0.00581323,2724.9,2724.5,0.4896]
[1645932753599,1.38059262,2725.0,2724.5,0.4896]
[1645932753802,0.00581326,2724.8,2724.5,0.4896]
[1645932754000,0.00581326,2724.8,2724.5,0.0304]
[1645932754704,1.38059262,2725.0,2724.5,0.0304]
[1645932754909,0.1792,2725.0,2724.5,0.0304]
[1645932755105,0.0058132,2724.8,2724.5,0.0304]
[1645932756006,1.15946179,2724.8,2724.5,0.0304]
[1645932756210,1.46527499,2724.8,2724.5,0.0304]
[1645932756406,0.3058132,2724.8,2724.5,0.0304]
[1645932757207,0.3,2724.8,2724.5,0.0304]
[1645932757452,1.49330095,2724.8,2724.5,0.0304]
[1645932757649,1.19330095,2724.8,2724.2,0.0296]
[1645932757851,1.49330095,2724.8,2724.2,0.0296]
[1645932758452,1.48748775,2724.8,2724.2,0.0296]
[1645932758755,1.49330073,2724.8,2724.2,0.0296]
[1645932759552,1.48748775,2724.8,2724.2,0.0296]
[1645932759751,1.49330073,2724.8,2724.2,0.0296]
[1645932760758,1.48748775,2724.8,2724.2,0.0296]
[1645932760960,1.49330073,2724.8,2724.2,0.0296]
[1645932762039,1.48748775,2724.8,2724.2,0.0296]
[1645932762336,1.49330073,2724.8,2724.2,0.0296]
[1645932763136,1.18748775,2724.8,2724.2,0.0296]
[1645932763338,1.19330073,2724.8,2724.2,0.0296]
[1645932764437,1.48748775,2724.8,2724.2,0.0296]
[1645932764637,1.49330073,2724.8,2724.2,0.0296]
[1645932765463,0.1792,2724.9,2724.2,0.0296]
[1645932765864,0.00581298,2724.8,2724.2,0.0296]
[1645932766664,1.55795009,2724.9,2724.2,0.0296]
[1645932766864,0.1792,2724.9,2724.2,0.03056]
[1645932767065,0.00581298,2724.8,2724.2,0.03056]
[1645932767263,0.00581298,2724.8,2724.2,0.0296]
[1645932767866,1.24560658,2724.8,2724.2,0.0296]
[1645932768064,0.1792,2724.9,2724.2,0.0296]
[1645932768266,0.00581298,2724.8,2724.2,0.03056]
[1645932768618,0.00581298,2724.8,2724.2,0.0296]
[1645932769210,1.27623273,2724.8,2724.2,0.0296]
[1645932769409,1.28204571,2724.8,2724.2,0.0296]
[1645932769609,0.00581298,2724.8,2724.2,0.0296]
[1645932770418,0.1792,2724.9,2724.2,0.0296]
[1645932770618,1.55653273,2724.8,2724.2,0.0296]
[1645932770818,1.55071975,2724.7,2724.2,0.0296]
[1645932771220,0.00581298,2724.8,2724.2,0.0296]
[1645932771425,1.55071534,2724.7,2724.2,0.0296]
[1645932771822,0.00581298,2724.8,2724.2,0.0296]
[1645932772021,1.55072099,2724.7,2724.2,0.0296]
[1645932773056,1.34696182,2724.7,2724.2,0.0296]
[1645932773357,1.55072099,2724.6,2724.2,0.0296]
[1645932773757,0.0058129,2724.8,2724.2,0.0296]
[1645932773959,1.55076898,2724.7,2724.2,0.0296]
[1645932774161,0.1792,2724.9,2724.2,0.0296]
[1645932774162,1.55076898,2724.6,2724.2,0.0296]
[1645932774360,0.00402048,2724.8,2724.2,0.0296]
[1645932774963,1.5547642,2724.8,2724.2,0.0296]
[1645932775164,1.60742946,2724.9,2724.2,0.0296]
[1645932775467,0.00581556,2724.8,2724.2,0.0296]
[1645932776310,1.90742946,2724.9,2724.2,0.0296]
[1645932777911,3.5,2724.8,2724.2,0.0296]
[1645932778219,3.5,2724.8,2724.0,0.00096]
[1645932778220,16.7762,2724.7,2724.0,0.00096]
[1645932778414,16.7762,2724.7,2723.2,0.90814866]
[1645932778415,8.8694,2724.5,2723.2,0.90814866]
[1645932778619,0.3694,2724.0,2723.1,0.90814866]
[1645932778819,2.3694,2723.8,2722.9,0.5]
[1645932779012,1.390947,2723.5,2722.9,0.5]
[1645932779212,1.321547,2723.5,2722.9,0.35]
[1645932779414,4.1954,2723.7,2722.9,1.25814866]
[1645932779415,0.1792,2723.7,2722.9,1.25814866]
[1645932779612,0.1792,2723.7,2722.9,0.35]
[1645932779613,3.6792,2723.7,2722.9,0.35]
[1645932779860,3.5,2723.7,2722.9,0.35]
[1645932780065,0.3694,2723.6,2722.9,0.35]
[1645932780363,3.6468,2723.7,2723.2,0.00581736]
[1645932780563,0.1792,2723.3,2723.2,0.00581736]
[1645932780772,1.12512429,2723.3,2723.2,0.00581736]
[1645932780967,1.30432429,2723.3,2723.2,0.00581736]
[1645932781265,1.30432429,2723.3,2722.5,2.9718]
[1645932781266,1.60432429,2723.3,2722.5,2.9718]
[1645932781468,0.4792,2723.3,2722.5,2.85089044]
[1645932781664,0.4792,2723.3,2722.4,0.00096]
[1645932781865,0.4792,2723.3,2722.6,1.0]
[1645932782069,0.4792,2723.3,2722.9,0.5]
[1645932782666,1.1881757,2723.2,2722.9,0.5]
[1645932783808,1.19221067,2723.2,2722.9,0.5]
[1645932784208,1.19221067,2723.2,2722.9,0.0407]
[1645932784808,1.1881757,2723.2,2722.9,0.0407]
[1645932785211,1.19399047,2723.2,2722.9,0.0407]
[1645932785814,4.69399047,2723.2,2722.9,0.0407]
[1645932786016,4.6881757,2723.2,2722.9,0.0407]
[1645932786212,1.19399047,2723.2,2722.9,0.0407]
[1645932786614,4.69399047,2723.2,2722.9,0.0407]
[1645932787217,4.6881757,2723.2,2722.6,0.58236]
[1645932787458,1.19399047,2723.2,2722.6,0.5881761]
[1645932787861,0.00581477,2723.2,2722.9,0.5]
[1645932788360,3.9792,2723.3,2722.9,0.5]
[1645932788560,0.00543894,2723.2,2722.9,0.5]
[1645932788756,0.00543894,2723.2,2723.1,0.03870999]
[1645932789160,0.18463894,2723.2,2723.1,0.03870999]
[1645932789559,0.1792,2723.2,2723.1,0.03870999]
[1645932790260,0.1792,2723.2,2722.9,0.07940999]
[1645932790462,3.6792,2723.2,2722.9,0.07940999]
[1645932790661,1.31325862,2723.1,2722.9,0.07940999]
[1645932790862,1.31325862,2723.1,2722.3,0.00096]
[1645932790863,3.8694,2723.0,2722.3,0.00096]
[1645932791118,3.8694,2723.0,2722.6,0.00544018]
[1645932791119,0.1792,2722.8,2722.6,0.00544018]
[1645932791913,0.1469,2722.7,2722.3,0.00096]
[1645932792113,0.1469,2722.7,2722.0,0.00096]
[1645932792114,0.1792,2722.4,2722.0,0.00096]
[1645932792316,0.8206,2722.4,2721.9,0.02186857]
[1645932792513,0.1792,2722.1,2721.9,0.02186857]
[1645932793013,1.14435894,2722.0,2721.9,0.02186857]
[1645932793212,1.14435894,2722.0,2721.4,3.17666]
[1645932793413,4.94435894,2722.0,2721.9,0.00178067]
[1645932793617,1.44435894,2722.0,2721.9,0.00178067]
[1645932793814,1.14435894,2722.0,2721.9,0.00178067]
[1645932794415,1.14435894,2722.0,2721.4,0.58256]
[1645932794613,0.1792,2722.1,2721.8,0.0017807]
[1645932794879,0.1792,2722.1,2721.8,0.5833807]
[1645932795281,0.1792,2722.1,2721.9,0.5816]
[1645932795682,0.1792,2722.1,2721.4,2.72266]
[1645932795884,0.1792,2722.1,2721.8,0.00581824]
[1645932796488,0.1792,2722.1,2721.8,0.58741824]
[1645932796684,0.1792,2722.1,2722.0,0.5816]
[1645932797286,0.1792,2722.1,2722.0,1.88963496]
[1645932797483,0.1792,2722.1,2722.0,0.5816]
[1645932798919,0.1792,2722.1,2721.9,0.00581818]
[1645932799128,0.1792,2722.1,2721.6,1.92865801]
[1645932799518,0.1792,2722.1,2721.9,0.00581818]
[1645932800321,0.1792,2722.1,2721.6,1.92865801]
[1645932800724,0.1792,2722.1,2721.9,0.00581821]
[1645932801526,0.1792,2722.1,2721.7,0.5816]
[1645932801921,0.1792,2722.1,2721.9,0.00581821]
[1645932802763,9.54270936,2722.6,2721.7,0.5816]
[1645932802962,0.1792,2721.9,2721.7,0.58256]
[1645932803163,0.1792,2721.9,2721.6,1.34705801]
[1645932803367,0.1792,2721.9,2721.7,0.5816]
[1645932803565,8.16339997,2722.6,2721.8,0.5816]
[1645932803765,8.16339997,2722.6,2721.9,0.5816]
[1645932803766,0.1792,2722.2,2721.9,0.5816]
[1645932803967,0.1792,2722.2,2721.7,0.00096]
[1645932804174,0.1792,2722.2,2722.0,0.5816]
[1645932804366,0.1792,2722.2,2722.1,0.00581808]
[1645932804767,0.1792,2722.2,2722.1,1.39963675]
[1645932805167,0.1792,2722.2,2722.0,0.5816]
[1645932805368,0.1792,2722.2,2722.0,0.58741811]
[1645932805569,0.3694,2722.6,2722.0,0.58741811]
[1645932805570,0.1792,2722.1,2722.0,0.58741811]
[1645932805769,0.1792,2722.1,2722.0,0.00581811]
[1645932806413,0.1792,2722.1,2721.7,0.00096]
[1645932806616,1.41870248,2722.1,2721.9,0.00581818]
[1645932806818,0.4792,2722.1,2721.9,0.00581818]
[1645932807616,0.4792,2722.1,2721.6,0.58256]
[1645932807913,0.4792,2722.1,2721.6,0.5816]
[1645932808716,0.4792,2722.1,2721.6,1.65947629]
[1645932809017,0.4792,2722.1,2721.7,0.00178019]
[1645932809018,0.3,2722.1,2721.7,0.00178019]
[1645932809218,0.1792,2722.0,2721.7,0.00178019]
[1645932810074,0.1792,2722.0,2721.5,1.18893941]
[1645932810272,0.1792,2722.0,2721.8,0.5816]
[1645932811471,0.1792,2722.0,2721.8,0.58742175]
[1645932812272,0.1792,2722.4,2721.8,0.00582175]
[1645932812472,0.1792,2722.4,2722.3,0.5816]
[1645932812675,0.0058195,2722.8,2722.3,0.5816]
[1645932812872,0.0058195,2722.8,2722.1,0.8994]
[1645932813174,0.0058195,2722.8,2722.4,0.5816]
[1645932813371,0.0058195,2722.8,2722.3,1.26827862]
[1645932813618,2.9257,2723.1,2722.7,0.5816]
[1645932813819,0.00582054,2722.8,2722.5,0.00582129]
[1645932814020,0.18502054,2722.8,2722.5,0.00582129]
[1645932814819,0.0792,2722.8,2722.6,0.5816]
[1645932815022,0.0849115,2722.8,2722.6,0.5816]
[1645932816027,0.0792,2722.8,2722.6,0.5816]
[1645932816222,0.08286188,2722.8,2722.6,0.5816]
[1645932817226,0.0792,2722.8,2722.6,0.5816]
[1645932817456,0.08286188,2722.8,2722.6,0.5816]
[1645932818459,0.0784,2723.1,2722.6,0.951]
[1645932818660,0.00543787,2722.8,2722.7,4.03]
[1645932818957,0.00543787,2722.8,2722.7,4.6116]
[1645932819561,0.0784,2723.1,2722.7,4.6116]
[1645932819767,0.0784,2723.1,2722.8,11.6294]
[1645932819961,0.00543784,2722.9,2722.8,0.8994]
[1645932820361,0.00543784,2722.9,2722.8,0.53]
[1645932820763,0.0784,2723.1,2722.8,2.22478825]
[1645932821217,0.00545983,2723.0,2722.8,2.22478825]
[1645932821620,0.00545983,2723.0,2722.8,1.11318825]
[1645932821816,0.00545983,2723.0,2722.9,0.5816]
[1645932822017,3.9663,2723.7,2722.9,0.5816]
[1645932822219,0.0054598,2723.0,2722.9,0.5816]
[1645932822422,0.0054598,2723.0,2722.9,0.58256]
[1645932822620,0.0054598,2723.0,2722.9,0.5816]
[1645932823224,0.0776,2723.3,2722.9,0.5816]
[1645932823622,0.00545977,2723.1,2722.9,0.5816]
[1645932824521,0.0776,2723.3,2722.9,0.5816]
[1645932824864,0.00545824,2723.1,2722.9,0.5816]
[1645932825667,0.0776,2723.3,2722.9,0.5816]
[1645932825966,0.0776,2723.3,2722.8,1.11318825]
[1645932825967,0.00545824,2723.1,2722.8,1.11318825]
[1645932826168,0.00545824,2723.1,2723.0,0.5816]
[1645932826767,0.0776,2723.3,2723.0,0.5816]
[1645932827269,0.00545821,2723.2,2723.0,0.5816]
[1645932827674,0.00545821,2723.2,2723.1,4.6116]
[1645932828074,0.0776,2723.3,2723.1,2.1116]
[1645932828272,0.08305824,2723.3,2723.1,4.6116]
[1645932828471,0.08305824,2723.3,2723.2,0.5816]
[1645932828713,0.08305824,2723.3,2723.2,1.1116]
[1645932829314,0.0776,2723.3,2723.2,1.1116]
[1645932829514,0.0776,2723.3,2723.2,0.5816]
[1645932831721,1.62925876,2723.3,2723.2,0.5816]
[1645932832121,1.62925876,2723.3,2722.9,0.00096]
[1645932832357,0.0776,2723.3,2722.9,0.5816]
[1645932832770,0.0776,2723.3,2722.8,2.11318825]
[1645932832965,0.0776,2723.3,2723.0,0.5816]
[1645932833168,0.00545826,2723.2,2722.8,1.11414825]
[1645932833365,0.00545826,2723.2,2723.1,0.5816]
[1645932834166,0.0776,2723.3,2723.1,0.5816]
[1645932834367,0.08305822,2723.3,2723.2,0.5816]
[1645932835372,0.07616856,2723.3,2723.2,0.5816]
[1645932837042,0.07616856,2723.3,2723.2,0.951]
[1645932837241,0.07616856,2723.3,2723.2,12.741]
[1645932837442,0.07616856,2723.3,2723.2,16.241]
[1645932837642,2.0,2724.2,2723.3,2.5]
[1645932837846,1.55127614,2724.1,2723.4,15.29]
[1645932838046,1.55127614,2724.1,2723.5,0.53]
[1645932838240,1.55127614,2724.1,2723.5,4.03]
[1645932838241,1.0,2723.6,2723.5,4.03]
[1645932838642,2.90481961,2725.0,2723.5,16.609]
[1645932838643,0.69797374,2724.8,2723.5,16.609]
[1645932838843,3.55119635,2724.7,2724.4,0.5816]
[1645932839046,3.55119635,2724.7,2723.5,17.609]
[1645932839047,0.84339387,2724.2,2723.9,11.26]
[1645932839245,0.84339387,2724.2,2724.1,11.6294]
[1645932839246,9.387e-05,2724.2,2724.1,11.6294]
[1645932839443,9.387e-05,2724.2,2724.1,15.6594]
[1645932839644,9.387e-05,2724.2,2724.1,16.6594]
[1645932839860,9.387e-05,2724.2,2724.1,17.6594]
[1645932840067,9.387e-05,2724.2,2724.1,6.03]
[1645932840271,9.387e-05,2724.2,2724.1,3.4796]
[1645932840671,9.387e-05,2724.2,2724.1,2.4796]
[1645932841366,9.387e-05,2724.2,2724.1,1.9496]
[1645932841566,9.387e-05,2724.2,2724.1,1.0]
[1645932841769,9.387e-05,2724.2,2723.8,1.0]
[1645932841969,9.387e-05,2724.2,2723.6,1.4561]
[1645932842167,0.00545757,2724.3,2723.9,1.0]
[1645932842367,1.25555144,2724.5,2723.9,1.0]
[1645932842567,0.9552,2724.2,2723.6,1.1561]
[1645932842768,2.63836723,2724.2,2723.4,3.1065]
[1645932843068,2.63836723,2724.2,2723.6,1.0]
[1645932843271,1.55137864,2724.1,2723.6,1.0]
[1645932843467,1.55137864,2724.1,2723.7,1.0]
[1645932844132,1.2552,2724.2,2723.7,1.0]